[Event "*** Titled Tuesday Blitz"]
[Site "Chess.com"]
[Date "2020.11.10"]
[Round "1"]
[White "Savva09022009"]
[Black "youngKID"]
[Result "0-1"]
[WhiteElo "2408"]
[BlackElo "2830"]
[TimeControl "180+1"]
[EndTime "10:08:21 PST"]
[Termination "youngKID won by resignation"]

1. d4 {[%clk 0:02:59.5]} 1... Nf6 {[%clk 0:02:58.6]} 2. Nc3 {[%clk 0:02:59.2]}
2... g6 {[%clk 0:02:57.8]} 3. Bf4 {[%clk 0:02:56.6]} 3... Bg7 {[%clk 0:02:56.6]}
4. Qd2 {[%clk 0:02:54.8]} 4... d5 {[%clk 0:02:51.2]} 5. O-O-O {[%clk 0:02:53.4]}
5... h5 {[%clk 0:02:42.5]} 6. f3 {[%clk 0:02:52]} 6... Bf5 {[%clk 0:02:36.8]} 7.
Nh3 {[%clk 0:02:43.6]} 7... Bxh3 {[%clk 0:02:31.3]} 8. gxh3 {[%clk 0:02:44.5]}
8... c6 {[%clk 0:02:06.2]} 9. e4 {[%clk 0:02:40.5]} 9... h4 {[%clk 0:02:03.8]}
10. Bg5 {[%clk 0:02:27.3]} 10... Nbd7 {[%clk 0:02:00.1]} 11. Bd3 {[%clk
0:02:23]} 11... Nf8 {[%clk 0:01:56.2]} 12. e5 {[%clk 0:02:22.2]} 12... Nh5
{[%clk 0:01:54]} 13. f4 {[%clk 0:02:19.5]} 13... Ne6 {[%clk 0:01:45]} 14. Kb1
{[%clk 0:02:18.2]} 14... Nxd4 {[%clk 0:01:41.4]} 15. Bxg6 {[%clk 0:02:08.5]}
15... Nf3 {[%clk 0:01:37.7]} 16. Qf2 {[%clk 0:02:04]} 16... Nxg5 {[%clk
0:01:32.3]} 17. Bxh5 {[%clk 0:01:59.2]} 17... Rxh5 {[%clk 0:01:33.2]} 18. fxg5
{[%clk 0:01:58.1]} 18... e6 {[%clk 0:01:29.4]} 19. Rhg1 {[%clk 0:01:53.8]} 19...
Rxg5 {[%clk 0:01:21.8]} 20. Ne4 {[%clk 0:01:44.3]} 20... Rxg1 {[%clk 0:01:12.4]}
21. Qxg1 {[%clk 0:01:45.2]} 21... Kf8 {[%clk 0:00:42.3]} 22. Ng5 {[%clk
0:01:19.8]} 22... Bxe5 {[%clk 0:00:11.4]} 23. Rf1 {[%clk 0:01:19]} 23... Qb6
{[%clk 0:00:11.6]} 24. Qxb6 {[%clk 0:00:59.4]} 24... axb6 {[%clk 0:00:11.3]} 25.
Rxf7+ {[%clk 0:00:52.7]} 25... Kg8 {[%clk 0:00:10.5]} 26. Rxb7 {[%clk
0:00:51.9]} 26... b5 {[%clk 0:00:09.5]} 27. a3 {[%clk 0:00:46.7]} 27... Bxh2
{[%clk 0:00:03.5]} 28. Nxe6 {[%clk 0:00:46.1]} 28... Re8 {[%clk 0:00:04.2]} 29.
Nd4 {[%clk 0:00:44.1]} 29... Re3 {[%clk 0:00:04.4]} 30. Nxc6 {[%clk 0:00:36.6]}
30... Rxh3 {[%clk 0:00:04.6]} 31. Ne7+ {[%clk 0:00:37.2]} 31... Kf7 {[%clk
0:00:04.7]} 32. Nxd5+ {[%clk 0:00:30.9]} 32... Ke6 {[%clk 0:00:05.1]} 33. Rxb5
{[%clk 0:00:30.5]} 33... Rf3 {[%clk 0:00:04.5]} 34. Nc3 {[%clk 0:00:19.4]} 34...
h3 {[%clk 0:00:04.9]} 35. Rh5 {[%clk 0:00:19]} 35... Bf4 {[%clk 0:00:04.1]} 36.
Ne2 {[%clk 0:00:14.3]} 36... Be5 {[%clk 0:00:04.4]} 37. Ka2 {[%clk 0:00:07.2]}
37... Re3 {[%clk 0:00:04.8]} 38. Ng1 {[%clk 0:00:04.5]} 38... h2 {[%clk
0:00:04.7]} 39. Nh3 {[%clk 0:00:03.4]} 39... Kf6 {[%clk 0:00:02.6]} 40. Nf2
{[%clk 0:00:03.2]} 40... Kg6 {[%clk 0:00:02.3]} 41. Rh3 {[%clk 0:00:03.2]} 41...
Rxh3 {[%clk 0:00:02.1]} 42. Nxh3 {[%clk 0:00:03.3]} 42... h1=Q {[%clk 0:00:03]}
43. Nf2 {[%clk 0:00:04.1]} 43... Qd5+ {[%clk 0:00:03.9]} 44. Kb1 {[%clk
0:00:03.7]} 44... Bd4 {[%clk 0:00:04.8]} 45. Nd3 {[%clk 0:00:04.2]} 45... Qh1+
{[%clk 0:00:05.1]} 46. Ka2 {[%clk 0:00:04.4]} 46... Qd5+ {[%clk 0:00:06]} 47.
Kb1 {[%clk 0:00:04.5]} 47... Qe4 {[%clk 0:00:06.9]} 48. Ka2 {[%clk 0:00:04.6]}
48... Kf5 {[%clk 0:00:07.5]} 49. Kb1 {[%clk 0:00:04.6]} 49... Qe2 {[%clk
0:00:07.2]} 50. a4 {[%clk 0:00:04.4]} 50... Qd1+ {[%clk 0:00:07.3]} 51. Ka2
{[%clk 0:00:03.1]} 51... Qxc2 {[%clk 0:00:07.5]} 52. Ka3 {[%clk 0:00:04]} 52...
Qxd3+ {[%clk 0:00:07.8]} 53. Kb4 {[%clk 0:00:04.9]} 53... Qd2+ {[%clk
0:00:08.6]} 0-1

[Event "*** Titled Tuesday Blitz"]
[Site "Chess.com"]
[Date "2020.11.10"]
[Round "1"]
[White "hansen"]
[Black "r31415"]
[Result "1-0"]
[WhiteElo "2911"]
[BlackElo "2457"]
[TimeControl "180+1"]
[EndTime "10:08:22 PST"]
[Termination "hansen won by resignation"]

1. e4 {[%clk 0:02:51.2]} 1... e5 {[%clk 0:02:59.2]} 2. Nf3 {[%clk 0:02:49.4]}
2... Nc6 {[%clk 0:02:59.6]} 3. Bb5 {[%clk 0:02:48.6]} 3... Nf6 {[%clk
0:03:00.1]} 4. d3 {[%clk 0:02:48.6]} 4... Bc5 {[%clk 0:02:56.4]} 5. c3 {[%clk
0:02:48.4]} 5... d5 {[%clk 0:02:56]} 6. exd5 {[%clk 0:02:47.1]} 6... Qxd5 {[%clk
0:02:55.3]} 7. Bc4 {[%clk 0:02:47.9]} 7... Qd6 {[%clk 0:02:55.4]} 8. Nbd2 {[%clk
0:02:48.1]} 8... O-O {[%clk 0:02:51.4]} 9. Qe2 {[%clk 0:02:48.4]} 9... a5 {[%clk
0:02:39.4]} 10. a4 {[%clk 0:02:46]} 10... Bf5 {[%clk 0:02:34.2]} 11. Ne4 {[%clk
0:02:42.9]} 11... Nxe4 {[%clk 0:02:30.2]} 12. dxe4 {[%clk 0:02:43.1]} 12... Be6
{[%clk 0:02:28.7]} 13. O-O {[%clk 0:02:29.9]} 13... Rad8 {[%clk 0:02:25.8]} 14.
Bg5 {[%clk 0:02:16.9]} 14... f6 {[%clk 0:02:21]} 15. Rad1 {[%clk 0:02:12.1]}
15... Qe7 {[%clk 0:02:18.4]} 16. Bc1 {[%clk 0:02:12.2]} 16... Qf7 {[%clk
0:02:00.8]} 17. Bxe6 {[%clk 0:02:09.1]} 17... Qxe6 {[%clk 0:02:01.7]} 18. Qb5
{[%clk 0:02:02.7]} 18... Bb6 {[%clk 0:01:59.1]} 19. Nd2 {[%clk 0:01:50.6]} 19...
Na7 {[%clk 0:00:42.7]} 20. Qc4 {[%clk 0:01:48]} 20... Kf7 {[%clk 0:00:36.7]} 21.
Qxe6+ {[%clk 0:01:38.1]} 21... Kxe6 {[%clk 0:00:36]} 22. Nc4 {[%clk 0:01:39]}
22... Nc8 {[%clk 0:00:35.4]} 23. b3 {[%clk 0:01:32.5]} 23... c6 {[%clk
0:00:32.5]} 24. Nxb6 {[%clk 0:01:21.9]} 24... Nxb6 {[%clk 0:00:32.2]} 25. Be3
{[%clk 0:01:21.3]} 25... Nc8 {[%clk 0:00:31.1]} 26. f3 {[%clk 0:01:20.9]} 26...
Rd7 {[%clk 0:00:25.5]} 27. Rxd7 {[%clk 0:01:18.8]} 27... Kxd7 {[%clk 0:00:26.4]}
28. b4 {[%clk 0:01:08.3]} 28... axb4 {[%clk 0:00:16.1]} 29. cxb4 {[%clk
0:01:08.8]} 29... Rd8 {[%clk 0:00:16.3]} 30. Kf2 {[%clk 0:00:42.9]} 30... Kc7
{[%clk 0:00:16]} 31. Ke2 {[%clk 0:00:40.1]} 31... Nb6 {[%clk 0:00:15.3]} 32. Ra1
{[%clk 0:00:29]} 32... Nc4 {[%clk 0:00:09.4]} 33. Bc1 {[%clk 0:00:29]} 33... b6
{[%clk 0:00:06.7]} 34. h4 {[%clk 0:00:27.3]} 34... Nd6 {[%clk 0:00:05.1]} 35. h5
{[%clk 0:00:27]} 35... Nf7 {[%clk 0:00:05.1]} 36. a5 {[%clk 0:00:25.2]} 36...
bxa5 {[%clk 0:00:02.5]} 37. bxa5 {[%clk 0:00:25.7]} 37... Rb8 {[%clk 0:00:02.3]}
38. a6 {[%clk 0:00:25.1]} 38... Nd6 {[%clk 0:00:02.1]} 39. Be3 {[%clk
0:00:20.4]} 39... Nb5 {[%clk 0:00:01.8]} 40. f4 {[%clk 0:00:16.3]} 40... Ra8
{[%clk 0:00:02.7]} 41. fxe5 {[%clk 0:00:15.9]} 41... fxe5 {[%clk 0:00:03.6]} 42.
Bc5 {[%clk 0:00:15]} 42... Nd4+ {[%clk 0:00:02.7]} 43. Bxd4 {[%clk 0:00:05.1]}
43... exd4 {[%clk 0:00:03.6]} 44. Kd3 {[%clk 0:00:05]} 44... c5 {[%clk
0:00:03.7]} 45. Kc4 {[%clk 0:00:05]} 45... Kb6 {[%clk 0:00:04.2]} 46. Rb1+
{[%clk 0:00:05.4]} 46... Kc6 {[%clk 0:00:04.1]} 47. Rb5 {[%clk 0:00:05.2]} 47...
Rxa6 {[%clk 0:00:02.8]} 48. Rxc5+ {[%clk 0:00:05.6]} 48... Kd6 {[%clk
0:00:02.4]} 49. Kxd4 {[%clk 0:00:06.1]} 49... Ke6 {[%clk 0:00:02.3]} 50. Rc7
{[%clk 0:00:05.4]} 50... Ra4+ {[%clk 0:00:02.4]} 51. Ke3 {[%clk 0:00:05.5]}
51... Kf6 {[%clk 0:00:02.3]} 52. Kf4 {[%clk 0:00:05.7]} 52... Rb4 {[%clk
0:00:02.2]} 53. g4 {[%clk 0:00:05.2]} 53... h6 {[%clk 0:00:02.7]} 54. Rc6+
{[%clk 0:00:04.7]} 54... Kf7 {[%clk 0:00:02.9]} 55. Kf5 {[%clk 0:00:05.6]} 55...
Rb5+ {[%clk 0:00:02.2]} 56. e5 {[%clk 0:00:06]} 56... Rb7 {[%clk 0:00:02.7]} 57.
Rd6 {[%clk 0:00:04.2]} 57... Rb2 {[%clk 0:00:02.1]} 58. Rd7+ {[%clk 0:00:04]}
58... Kf8 {[%clk 0:00:02]} 59. Rd8+ {[%clk 0:00:03.5]} 59... Ke7 {[%clk
0:00:01.5]} 60. Rd4 {[%clk 0:00:04.1]} 60... Kf8 {[%clk 0:00:01.7]} 61. Kg6
{[%clk 0:00:04.1]} 61... Rb6+ {[%clk 0:00:01.1]} 62. Kh7 {[%clk 0:00:04.4]}
62... Rb7 {[%clk 0:00:01.4]} 63. Rf4+ {[%clk 0:00:03.9]} 63... Ke8 {[%clk
0:00:01.5]} 64. Kg6 {[%clk 0:00:03.8]} 64... Re7 {[%clk 0:00:02.4]} 65. Rf5
{[%clk 0:00:04.1]} 65... Re6+ {[%clk 0:00:02.1]} 66. Kxg7 {[%clk 0:00:04.3]}
66... Re7+ {[%clk 0:00:02.3]} 67. Kxh6 {[%clk 0:00:04.5]} 1-0

[Event "*** Titled Tuesday Blitz"]
[Site "Chess.com"]
[Date "2020.11.10"]
[Round "1"]
[White "Nuvas"]
[Black "IwkooO"]
[Result "0-1"]
[WhiteElo "2317"]
[BlackElo "2639"]
[TimeControl "180+1"]
[EndTime "10:08:22 PST"]
[Termination "IwkooO won by resignation"]

1. d4 {[%clk 0:03:00.9]} 1... Nf6 {[%clk 0:02:59.8]} 2. c4 {[%clk 0:03:01.2]}
2... e6 {[%clk 0:03:00.2]} 3. Nc3 {[%clk 0:03:01.7]} 3... Bb4 {[%clk 0:02:59.9]}
4. g3 {[%clk 0:03:02.3]} 4... d5 {[%clk 0:02:57.3]} 5. Bg2 {[%clk 0:03:02.2]}
5... O-O {[%clk 0:02:54.6]} 6. Nf3 {[%clk 0:03:02.2]} 6... dxc4 {[%clk 0:02:54]}
7. O-O {[%clk 0:03:02.2]} 7... c6 {[%clk 0:02:50.5]} 8. Ne5 {[%clk 0:02:55.5]}
8... Nd5 {[%clk 0:02:40.1]} 9. Qc2 {[%clk 0:02:49.2]} 9... b5 {[%clk 0:02:35.1]}
10. a4 {[%clk 0:02:37.3]} 10... Bxc3 {[%clk 0:02:16.7]} 11. bxc3 {[%clk
0:02:36.9]} 11... Bb7 {[%clk 0:02:17.2]} 12. Rb1 {[%clk 0:02:15.2]} 12... Qa5
{[%clk 0:02:10.6]} 13. axb5 {[%clk 0:02:01.9]} 13... cxb5 {[%clk 0:02:11.1]} 14.
Nxc4 {[%clk 0:01:57.8]} 14... Qxc3 {[%clk 0:01:56]} 15. Qxc3 {[%clk 0:01:42.1]}
15... Nxc3 {[%clk 0:01:55.8]} 16. Bxb7 {[%clk 0:01:42.1]} 16... Nxb1 {[%clk
0:01:54.6]} 17. Na3 {[%clk 0:01:35]} 17... Nxa3 {[%clk 0:01:50.7]} 18. Bxa3
{[%clk 0:01:35.9]} 18... Nd7 {[%clk 0:01:51.2]} 19. Bxf8 {[%clk 0:01:35.5]}
19... Rxf8 {[%clk 0:01:50.7]} 20. Rb1 {[%clk 0:01:27.2]} 20... Rb8 {[%clk
0:01:36.8]} 21. Rxb5 {[%clk 0:01:24]} 21... Kf8 {[%clk 0:01:35.4]} 22. Kg2
{[%clk 0:01:13.4]} 22... Ke7 {[%clk 0:01:35.3]} 23. Kf3 {[%clk 0:01:13.6]} 23...
Kd6 {[%clk 0:01:34.3]} 24. Ke4 {[%clk 0:00:57]} 24... a5 {[%clk 0:01:26.8]} 25.
Ba6 {[%clk 0:00:42.6]} 25... Ra8 {[%clk 0:01:13.8]} 26. Bb7 {[%clk 0:00:42.7]}
26... Ra7 {[%clk 0:01:11.6]} 27. Rb1 {[%clk 0:00:42.6]} 27... a4 {[%clk
0:01:11.4]} 28. Kd3 {[%clk 0:00:38.4]} 28... a3 {[%clk 0:01:05.6]} 29. Bf3
{[%clk 0:00:32.9]} 29... a2 {[%clk 0:01:04.1]} 30. Ra1 {[%clk 0:00:33]} 30...
Nb6 {[%clk 0:01:03.1]} 31. Kc3 {[%clk 0:00:30.6]} 31... Nd5+ {[%clk 0:00:36.8]}
32. Kb3 {[%clk 0:00:25.8]} 32... Rb7+ {[%clk 0:00:24.6]} 33. Kxa2 {[%clk
0:00:25.9]} 33... Nc3+ {[%clk 0:00:18.2]} 34. Ka3 {[%clk 0:00:25.7]} 34... Nb5+
{[%clk 0:00:10.6]} 35. Kb2 {[%clk 0:00:26.1]} 35... Rb6 {[%clk 0:00:09.7]} 36.
Rd1 {[%clk 0:00:21.6]} 36... Nxd4+ {[%clk 0:00:09.9]} 37. Kc3 {[%clk 0:00:21.9]}
37... e5 {[%clk 0:00:09.7]} 38. e3 {[%clk 0:00:22.5]} 38... Rb3+ {[%clk
0:00:09.2]} 39. Kc4 {[%clk 0:00:23]} 39... Ra3 {[%clk 0:00:08.4]} 40. Bh1 {[%clk
0:00:22.5]} 40... Ra4+ {[%clk 0:00:06.2]} 41. Kc3 {[%clk 0:00:23.2]} 41... Ra3+
{[%clk 0:00:06.1]} 42. Kb4 {[%clk 0:00:22.9]} 42... Rb3+ {[%clk 0:00:06.4]} 43.
Kc4 {[%clk 0:00:23.6]} 43... Rb2 {[%clk 0:00:06.7]} 44. exd4 {[%clk 0:00:24.2]}
44... Rxf2 {[%clk 0:00:07.3]} 45. d5 {[%clk 0:00:23.4]} 45... Rxh2 {[%clk
0:00:07.3]} 46. Rb1 {[%clk 0:00:23.5]} 46... Rc2+ {[%clk 0:00:07.8]} 47. Kd3
{[%clk 0:00:23.9]} 47... Rc5 {[%clk 0:00:06.4]} 48. Rb6+ {[%clk 0:00:24.2]}
48... Ke7 {[%clk 0:00:06.7]} 49. Rc6 {[%clk 0:00:24.4]} 49... Rxc6 {[%clk
0:00:03.7]} 50. dxc6 {[%clk 0:00:24.5]} 50... f5 {[%clk 0:00:04.1]} 51. Kc4
{[%clk 0:00:24.1]} 51... Kd6 {[%clk 0:00:04.5]} 52. Kb5 {[%clk 0:00:24.5]} 52...
Kc7 {[%clk 0:00:05.1]} 53. Kc5 {[%clk 0:00:25]} 53... g5 {[%clk 0:00:04.1]} 54.
Kd5 {[%clk 0:00:25.4]} 54... e4 {[%clk 0:00:04.7]} 55. Ke5 {[%clk 0:00:25.8]}
55... g4 {[%clk 0:00:02.8]} 56. Kxf5 {[%clk 0:00:25.7]} 56... e3 {[%clk
0:00:03.3]} 57. Kxg4 {[%clk 0:00:20.7]} 57... e2 {[%clk 0:00:03.7]} 58. Bf3
{[%clk 0:00:21.6]} 58... e1=Q {[%clk 0:00:04.6]} 59. Kf4 {[%clk 0:00:22.5]}
59... Qe7 {[%clk 0:00:04.9]} 60. g4 {[%clk 0:00:22.8]} 60... Qf6+ {[%clk
0:00:05.5]} 61. Kg3 {[%clk 0:00:23]} 61... h6 {[%clk 0:00:05.9]} 62. Bg2 {[%clk
0:00:22.9]} 62... Kd6 {[%clk 0:00:06.5]} 63. Kh3 {[%clk 0:00:23.3]} 63... Qe7
{[%clk 0:00:05.7]} 64. Kg3 {[%clk 0:00:24.2]} 64... Ke5 {[%clk 0:00:06.1]} 65.
Kh3 {[%clk 0:00:25.1]} 65... Kf4 {[%clk 0:00:05.6]} 66. c7 {[%clk 0:00:25.9]}
66... Qxc7 {[%clk 0:00:05.8]} 0-1

[Event "*** Titled Tuesday Blitz"]
[Site "Chess.com"]
[Date "2020.11.10"]
[Round "1"]
[White "Orest_Vovk"]
[Black "Fortitudine"]
[Result "0-1"]
[WhiteElo "2564"]
[BlackElo "2277"]
[TimeControl "180+1"]
[EndTime "10:08:26 PST"]
[Termination "Fortitudine won by resignation"]

1. d4 {[%clk 0:03:00.1]} 1... Nf6 {[%clk 0:02:59.2]} 2. Bf4 {[%clk 0:02:59.9]}
2... d6 {[%clk 0:02:57.2]} 3. e3 {[%clk 0:02:59.9]} 3... g6 {[%clk 0:02:57.3]}
4. Nf3 {[%clk 0:03:00]} 4... Bg7 {[%clk 0:02:57.3]} 5. Be2 {[%clk 0:03:00.2]}
5... O-O {[%clk 0:02:56.5]} 6. O-O {[%clk 0:02:59.8]} 6... b6 {[%clk 0:02:56.6]}
7. Nbd2 {[%clk 0:02:59.3]} 7... Ba6 {[%clk 0:02:56.4]} 8. Bxa6 {[%clk 0:02:56]}
8... Nxa6 {[%clk 0:02:57.3]} 9. c3 {[%clk 0:02:56.8]} 9... c5 {[%clk 0:02:57]}
10. Qe2 {[%clk 0:02:55.5]} 10... Qc8 {[%clk 0:02:54.8]} 11. a4 {[%clk
0:02:53.8]} 11... Nc7 {[%clk 0:02:48.8]} 12. a5 {[%clk 0:02:52.5]} 12... Qb7
{[%clk 0:02:38]} 13. h3 {[%clk 0:02:49.9]} 13... b5 {[%clk 0:02:24.9]} 14. dxc5
{[%clk 0:02:36.7]} 14... dxc5 {[%clk 0:02:24.6]} 15. Bxc7 {[%clk 0:02:34.7]}
15... Qxc7 {[%clk 0:02:25.5]} 16. Qxb5 {[%clk 0:02:32.1]} 16... Rab8 {[%clk
0:02:21.3]} 17. Qc4 {[%clk 0:02:30.5]} 17... Rxb2 {[%clk 0:02:20.2]} 18. Nb3
{[%clk 0:02:19.8]} 18... Rb8 {[%clk 0:02:12.6]} 19. Qxc5 {[%clk 0:02:06.6]}
19... Qxc5 {[%clk 0:02:09.5]} 20. Nxc5 {[%clk 0:02:06.2]} 20... Nd5 {[%clk
0:02:01.5]} 21. c4 {[%clk 0:02:00.4]} 21... Nc3 {[%clk 0:01:57.5]} 22. Nd3
{[%clk 0:01:40.5]} 22... R2b3 {[%clk 0:01:44]} 23. Nde5 {[%clk 0:01:34.5]} 23...
Rc8 {[%clk 0:01:31]} 24. Nd4 {[%clk 0:01:21.9]} 24... Ne2+ {[%clk 0:01:16.6]}
25. Nxe2 {[%clk 0:01:19.5]} 25... Bxe5 {[%clk 0:01:16.8]} 26. Rac1 {[%clk
0:01:08.4]} 26... Rb4 {[%clk 0:01:16.6]} 27. Rc2 {[%clk 0:00:56.1]} 27... Rbxc4
{[%clk 0:01:16.4]} 28. Rxc4 {[%clk 0:00:56]} 28... Rxc4 {[%clk 0:01:17.3]} 29.
Rc1 {[%clk 0:00:56.4]} 29... Ra4 {[%clk 0:01:11.3]} 30. f4 {[%clk 0:00:45.2]}
30... Bd6 {[%clk 0:01:10.8]} 31. Rc8+ {[%clk 0:00:37.8]} 31... Kg7 {[%clk
0:01:10.8]} 32. Nd4 {[%clk 0:00:31.9]} 32... Rxa5 {[%clk 0:01:05.3]} 33. Nc6
{[%clk 0:00:31.4]} 33... Rc5 {[%clk 0:01:03.6]} 34. Nxa7 {[%clk 0:00:12.3]}
34... Ra5 {[%clk 0:01:03.8]} 35. Nc6 {[%clk 0:00:11.8]} 35... Ra2 {[%clk
0:01:02]} 36. Nd4 {[%clk 0:00:08.9]} 36... Rd2 {[%clk 0:00:57.9]} 37. Rc3 {[%clk
0:00:06.1]} 37... Bxf4 {[%clk 0:00:57.2]} 38. Ne6+ {[%clk 0:00:05.1]} 38... fxe6
{[%clk 0:00:55.5]} 39. exf4 {[%clk 0:00:06]} 39... Kf6 {[%clk 0:00:55]} 40. Re3
{[%clk 0:00:05.4]} 40... Kf5 {[%clk 0:00:52.2]} 41. Re5+ {[%clk 0:00:04.8]}
41... Kxf4 {[%clk 0:00:50.9]} 42. Rxe6 {[%clk 0:00:04.5]} 42... Rd7 {[%clk
0:00:51.5]} 43. Kf2 {[%clk 0:00:04.5]} 43... Kf5 {[%clk 0:00:51.9]} 44. Re3
{[%clk 0:00:04]} 44... e5 {[%clk 0:00:52.3]} 45. g4+ {[%clk 0:00:04.2]} 45...
Ke6 {[%clk 0:00:52.2]} 46. Kf3 {[%clk 0:00:05.1]} 46... Rd2 {[%clk 0:00:52.1]}
47. Ra3 {[%clk 0:00:05.1]} 47... Rd6 {[%clk 0:00:51.7]} 48. Ra7 {[%clk
0:00:04.9]} 48... h5 {[%clk 0:00:50.3]} 49. gxh5 {[%clk 0:00:04.7]} 49... gxh5
{[%clk 0:00:51.2]} 50. Rh7 {[%clk 0:00:04.3]} 50... Rd3+ {[%clk 0:00:50]} 51.
Kg2 {[%clk 0:00:03.9]} 51... Rd2+ {[%clk 0:00:47.9]} 52. Kg3 {[%clk 0:00:04.2]}
52... Rd3+ {[%clk 0:00:47.8]} 53. Kh4 {[%clk 0:00:04.6]} 53... e4 {[%clk
0:00:45.6]} 54. Rh6+ {[%clk 0:00:03.6]} 54... Kf7 {[%clk 0:00:42.9]} 55. Rxh5
{[%clk 0:00:04.5]} 55... e3 {[%clk 0:00:43.3]} 56. Re5 {[%clk 0:00:04.7]} 56...
Kf6 {[%clk 0:00:43.9]} 57. Re8 {[%clk 0:00:04.9]} 57... Kf5 {[%clk 0:00:43.7]}
58. Rf8+ {[%clk 0:00:05.2]} 58... Ke4 {[%clk 0:00:43.8]} 59. Re8+ {[%clk
0:00:05.5]} 59... Kf3 {[%clk 0:00:44.3]} 60. Rf8+ {[%clk 0:00:05.8]} 60... Kg2
{[%clk 0:00:44]} 61. Re8 {[%clk 0:00:05.3]} 61... Kf2 {[%clk 0:00:44.3]} 62. Kg5
{[%clk 0:00:05.1]} 62... e2 {[%clk 0:00:44.4]} 63. h4 {[%clk 0:00:05.4]} 63...
Rg3+ {[%clk 0:00:44.1]} 64. Kf4 {[%clk 0:00:04.8]} 64... Rh3 {[%clk 0:00:44.2]}
65. Rxe2+ {[%clk 0:00:02.9]} 65... Kxe2 {[%clk 0:00:44.1]} 66. Kg4 {[%clk
0:00:03.8]} 66... Rh1 {[%clk 0:00:43.5]} 67. h5 {[%clk 0:00:04.4]} 67... Ke3
{[%clk 0:00:44]} 68. Kg5 {[%clk 0:00:04.1]} 68... Ke4 {[%clk 0:00:44.3]} 69. Kg6
{[%clk 0:00:04.6]} 69... Ke5 {[%clk 0:00:43.5]} 70. h6 {[%clk 0:00:05.5]} 70...
Ke6 {[%clk 0:00:43.5]} 71. h7 {[%clk 0:00:05]} 71... Rg1+ {[%clk 0:00:43.6]} 72.
Kh6 {[%clk 0:00:05.3]} 72... Kf7 {[%clk 0:00:40.7]} 73. h8=Q {[%clk 0:00:05.1]}
73... Rh1+ {[%clk 0:00:40.9]} 0-1

[Event "*** Titled Tuesday Blitz"]
[Site "Chess.com"]
[Date "2020.11.10"]
[Round "1"]
[White "gui_borba"]
[Black "ShimanovAlex"]
[Result "1-0"]
[WhiteElo "2433"]
[BlackElo "2824"]
[TimeControl "180+1"]
[EndTime "10:08:31 PST"]
[Termination "gui_borba won by resignation"]

1. e4 {[%clk 0:02:58.5]} 1... d5 {[%clk 0:02:58.5]} 2. exd5 {[%clk 0:02:58.3]}
2... Qxd5 {[%clk 0:02:59.4]} 3. Nc3 {[%clk 0:02:58]} 3... Qd6 {[%clk 0:02:59.6]}
4. d4 {[%clk 0:02:56.7]} 4... Nf6 {[%clk 0:02:59.6]} 5. Nf3 {[%clk 0:02:56.9]}
5... Nc6 {[%clk 0:02:59.2]} 6. Bb5 {[%clk 0:02:52.4]} 6... a6 {[%clk 0:02:57.5]}
7. Bxc6+ {[%clk 0:02:36.3]} 7... Qxc6 {[%clk 0:02:56.7]} 8. Bf4 {[%clk
0:02:32.1]} 8... e6 {[%clk 0:02:53.8]} 9. Qd3 {[%clk 0:02:28]} 9... Bb4 {[%clk
0:02:49.7]} 10. O-O {[%clk 0:02:27.2]} 10... O-O {[%clk 0:02:36.9]} 11. Ne5
{[%clk 0:02:25.8]} 11... Qe8 {[%clk 0:02:36.4]} 12. Ne4 {[%clk 0:02:22.6]} 12...
Nxe4 {[%clk 0:02:35.2]} 13. Qxe4 {[%clk 0:02:23.5]} 13... Bd6 {[%clk 0:02:35.3]}
14. Nc4 {[%clk 0:02:12.6]} 14... Bxf4 {[%clk 0:02:30]} 15. Qxf4 {[%clk
0:02:13.5]} 15... Qc6 {[%clk 0:02:30.1]} 16. Ne3 {[%clk 0:02:10.5]} 16... b6
{[%clk 0:02:27.1]} 17. c4 {[%clk 0:02:07.6]} 17... Qd6 {[%clk 0:02:17.7]} 18.
Qe4 {[%clk 0:01:51.1]} 18... Rb8 {[%clk 0:02:16.7]} 19. Rad1 {[%clk 0:01:47.7]}
19... Bb7 {[%clk 0:02:16.3]} 20. d5 {[%clk 0:01:47.5]} 20... Rbe8 {[%clk
0:02:10.4]} 21. Qd4 {[%clk 0:01:37.8]} 21... e5 {[%clk 0:02:09.8]} 22. Qc3
{[%clk 0:01:35.2]} 22... f5 {[%clk 0:02:09.3]} 23. Rfe1 {[%clk 0:01:34.2]} 23...
f4 {[%clk 0:02:02.2]} 24. Nc2 {[%clk 0:01:27.8]} 24... Bc8 {[%clk 0:01:57.4]}
25. f3 {[%clk 0:01:25.5]} 25... a5 {[%clk 0:01:46.1]} 26. a3 {[%clk 0:01:21]}
26... Bf5 {[%clk 0:01:44]} 27. Re2 {[%clk 0:01:07.6]} 27... e4 {[%clk
0:01:34.6]} 28. fxe4 {[%clk 0:01:05.5]} 28... Rxe4 {[%clk 0:01:33.6]} 29. Rxe4
{[%clk 0:01:02.2]} 29... Bxe4 {[%clk 0:01:34.5]} 30. Nd4 {[%clk 0:01:02.2]}
30... Qg6 {[%clk 0:01:29.9]} 31. Nf3 {[%clk 0:01:01.6]} 31... Bxf3 {[%clk
0:01:14.2]} 32. Qxf3 {[%clk 0:01:02.5]} 32... Qc2 {[%clk 0:01:14.6]} 33. Qd3
{[%clk 0:00:45.5]} 33... Qxb2 {[%clk 0:01:12.2]} 34. d6 {[%clk 0:00:45.8]} 34...
cxd6 {[%clk 0:01:12.2]} 35. Qd5+ {[%clk 0:00:44.3]} 35... Kh8 {[%clk 0:00:59.9]}
36. Qxd6 {[%clk 0:00:41]} 36... Rg8 {[%clk 0:00:57.1]} 37. Rf1 {[%clk
0:00:30.7]} 37... g5 {[%clk 0:00:32.5]} 38. Re1 {[%clk 0:00:30]} 38... Qc3
{[%clk 0:00:24.4]} 39. Re7 {[%clk 0:00:27.1]} 39... Qc1+ {[%clk 0:00:23.3]} 40.
Kf2 {[%clk 0:00:26.5]} 40... Qb2+ {[%clk 0:00:23.4]} 41. Kf1 {[%clk 0:00:24.5]}
41... g4 {[%clk 0:00:20.6]} 42. Qd3 {[%clk 0:00:18.4]} 42... Qc1+ {[%clk
0:00:15.7]} 43. Kf2 {[%clk 0:00:18]} 43... g3+ {[%clk 0:00:15.3]} 44. Kf3 {[%clk
0:00:15]} 44... Qe3+ {[%clk 0:00:03.1]} 45. Rxe3 {[%clk 0:00:13.8]} 45... fxe3
{[%clk 0:00:04]} 46. Qd4+ {[%clk 0:00:12.1]} 46... Rg7 {[%clk 0:00:04.1]} 47.
Qd8+ {[%clk 0:00:12.7]} 47... Rg8 {[%clk 0:00:04.1]} 48. Qd4+ {[%clk 0:00:13.6]}
48... Rg7 {[%clk 0:00:05]} 49. hxg3 {[%clk 0:00:14.5]} 49... Kg8 {[%clk
0:00:04.8]} 50. Qd8+ {[%clk 0:00:13.8]} 50... Kf7 {[%clk 0:00:04.7]} 51. Qd5+
{[%clk 0:00:13.8]} 51... Kg6 {[%clk 0:00:05.6]} 52. Kxe3 {[%clk 0:00:14]} 52...
Re7+ {[%clk 0:00:05.8]} 53. Kf3 {[%clk 0:00:14.3]} 53... Rf7+ {[%clk 0:00:06.7]}
54. Kg4 {[%clk 0:00:14.3]} 54... Rf6 {[%clk 0:00:07.6]} 55. Qg5+ {[%clk
0:00:14.5]} 55... Kf7 {[%clk 0:00:07.9]} 56. Qd5+ {[%clk 0:00:15.1]} 56... Kg6
{[%clk 0:00:08]} 57. Kh3 {[%clk 0:00:15.1]} 57... Kg7 {[%clk 0:00:07.9]} 58. g4
{[%clk 0:00:15.4]} 58... Rh6+ {[%clk 0:00:07.8]} 59. Kg3 {[%clk 0:00:15.6]}
59... Rf6 {[%clk 0:00:08.7]} 60. g5 {[%clk 0:00:15.9]} 60... Rg6 {[%clk
0:00:09.6]} 61. Qe5+ {[%clk 0:00:16.1]} 61... Kf8 {[%clk 0:00:10.5]} 62. Kf4
{[%clk 0:00:16.4]} 62... Kf7 {[%clk 0:00:10.7]} 63. Qc7+ {[%clk 0:00:16.3]}
63... Kf8 {[%clk 0:00:10.7]} 64. Kf5 {[%clk 0:00:16.7]} 64... Kg8 {[%clk
0:00:10.4]} 65. Qd8+ {[%clk 0:00:16.6]} 65... Kg7 {[%clk 0:00:11.3]} 66. Qe7+
{[%clk 0:00:16.8]} 66... Kg8 {[%clk 0:00:11.5]} 67. g3 {[%clk 0:00:17.1]} 67...
a4 {[%clk 0:00:08.5]} 68. Qe8+ {[%clk 0:00:16.4]} 68... Kg7 {[%clk 0:00:08.7]}
69. Qxa4 {[%clk 0:00:16.9]} 1-0